[Event "Late-Titled-Tuesday-Blitz-February-27-2024"]
[Site "Chess.com"]
[Date "2024.02.27"]
[Round "7"]
[White "OneTrickPony_82"]
[Black "Escudito"]
[Result "1-0"]
[WhiteElo "2534"]
[BlackElo "2420"]
[TimeControl "180+1"]
[EndTime "15:16:24 PST"]
[Termination "OneTrickPony_82 won by resignation"]

1. d4 {[%clk 0:03:00.9]} 1... d5 {[%clk 0:02:56.9]} 2. c4 {[%clk 0:03:00.2]}
2... e6 {[%clk 0:02:56.5]} 3. Nf3 {[%clk 0:03:00.1]} 3... c5 {[%clk 0:02:54.6]}
4. cxd5 {[%clk 0:02:59.2]} 4... exd5 {[%clk 0:02:55.5]} 5. Nc3 {[%clk
0:02:58.8]} 5... Nc6 {[%clk 0:02:56.1]} 6. dxc5 {[%clk 0:02:57.2]} 6... d4
{[%clk 0:02:54.9]} 7. Na4 {[%clk 0:02:57.6]} 7... Bxc5 {[%clk 0:02:54.4]} 8.
Nxc5 {[%clk 0:02:57.8]} 8... Qa5+ {[%clk 0:02:54.8]} 9. Bd2 {[%clk 0:02:56.3]}
9... Qxc5 {[%clk 0:02:54.7]} 10. b4 {[%clk 0:02:55.8]} 10... Qe7 {[%clk
0:02:43.5]} 11. b5 {[%clk 0:02:45.9]} 11... Ne5 {[%clk 0:02:43]} 12. Nxe5 {[%clk
0:02:25.6]} 12... Qxe5 {[%clk 0:02:43.9]} 13. g3 {[%clk 0:02:16.6]} 13... Qd5
{[%clk 0:02:27.5]} 14. Rg1 {[%clk 0:02:12]} 14... Ne7 {[%clk 0:02:22.7]} 15. Qa4
{[%clk 0:02:05.5]} 15... O-O {[%clk 0:02:16.2]} 16. Bg2 {[%clk 0:02:03.6]} 16...
Qe5 {[%clk 0:02:13.7]} 17. Bf4 {[%clk 0:01:59.9]} 17... Qf6 {[%clk 0:02:05.7]}
18. Rd1 {[%clk 0:01:59.4]} 18... Rd8 {[%clk 0:01:59.9]} 19. e4 {[%clk
0:01:44.2]} 19... Ng6 {[%clk 0:01:42.4]} 20. e5 {[%clk 0:01:40.9]} 20... Nxe5
{[%clk 0:01:35.5]} 21. Kd2 {[%clk 0:01:26.9]} 21... Bf5 {[%clk 0:01:29.1]} 22.
Rge1 {[%clk 0:01:25.2]} 22... Rac8 {[%clk 0:01:26.9]} 23. Rxe5 {[%clk
0:01:21.7]} 23... Bc2 {[%clk 0:01:20.1]} 24. Qxc2 {[%clk 0:01:15.9]} 24... Rxc2+
{[%clk 0:01:19.4]} 25. Kxc2 {[%clk 0:01:16.3]} 25... Qb6 {[%clk 0:01:07.9]} 26.
Rde1 {[%clk 0:01:08.6]} 26... h6 {[%clk 0:00:50.7]} 27. Re8+ {[%clk 0:01:07.7]}
27... Rxe8 {[%clk 0:00:50.9]} 28. Rxe8+ {[%clk 0:01:08.1]} 28... Kh7 {[%clk
0:00:51.8]} 29. Be4+ {[%clk 0:01:08]} 29... g6 {[%clk 0:00:52.3]} 30. Bd3 {[%clk
0:00:44.5]} 30... Qc5+ {[%clk 0:00:32.9]} 31. Kd1 {[%clk 0:00:40.2]} 31... Qh5+
{[%clk 0:00:32.1]} 32. Ke1 {[%clk 0:00:32.3]} 32... Qc5 {[%clk 0:00:32.1]} 33.
Be5 {[%clk 0:00:25.6]} 33... f6 {[%clk 0:00:21.1]} 34. Bxf6 {[%clk 0:00:22.1]}
34... Qc1+ {[%clk 0:00:19.1]} 35. Ke2 {[%clk 0:00:21.3]} 35... Qb2+ {[%clk
0:00:13]} 36. Kf1 {[%clk 0:00:20.1]} 36... Qc1+ {[%clk 0:00:06.5]} 37. Kg2
{[%clk 0:00:19.7]} 1-0

[Event "Late-Titled-Tuesday-Blitz-February-27-2024"]
[Site "Chess.com"]
[Date "2024.02.27"]
[Round "7"]
[White "Rutricks"]
[Black "Jospem"]
[Result "0-1"]
[WhiteElo "2695"]
[BlackElo "3063"]
[TimeControl "180+1"]
[EndTime "15:16:28 PST"]
[Termination "Jospem won by checkmate"]

1. c4 {[%clk 0:03:00.1]} 1... Nf6 {[%clk 0:02:59]} 2. Nc3 {[%clk 0:02:59.8]}
2... d6 {[%clk 0:02:54.3]} 3. g3 {[%clk 0:02:59.5]} 3... c6 {[%clk 0:02:54.2]}
4. Bg2 {[%clk 0:03:00.1]} 4... g6 {[%clk 0:02:55]} 5. d4 {[%clk 0:03:00.5]} 5...
Bg7 {[%clk 0:02:55.5]} 6. Nf3 {[%clk 0:03:00.5]} 6... O-O {[%clk 0:02:56.2]} 7.
O-O {[%clk 0:03:01.3]} 7... Bf5 {[%clk 0:02:56.9]} 8. h3 {[%clk 0:03:01.8]} 8...
Ne4 {[%clk 0:02:56.7]} 9. Qb3 {[%clk 0:02:59.9]} 9... Nxc3 {[%clk 0:02:50.2]}
10. bxc3 {[%clk 0:03:00.8]} 10... Qb6 {[%clk 0:02:44.2]} 11. Nd2 {[%clk
0:02:50.6]} 11... Be6 {[%clk 0:02:29.3]} 12. Rb1 {[%clk 0:02:12]} 12... Qxb3
{[%clk 0:02:18.4]} 13. Rxb3 {[%clk 0:02:12.5]} 13... Bc8 {[%clk 0:02:16.9]} 14.
Ba3 {[%clk 0:02:06.3]} 14... Nd7 {[%clk 0:02:16.6]} 15. Rfb1 {[%clk 0:02:03.3]}
15... Nb6 {[%clk 0:02:09]} 16. c5 {[%clk 0:01:52.3]} 16... dxc5 {[%clk
0:02:06.7]} 17. Bxc5 {[%clk 0:01:53]} 17... Re8 {[%clk 0:02:03.5]} 18. e3 {[%clk
0:01:04]} 18... Na4 {[%clk 0:01:33.9]} 19. Bb4 {[%clk 0:01:01.5]} 19... Nb6
{[%clk 0:01:08.6]} 20. Bc5 {[%clk 0:00:51.4]} 20... Bf5 {[%clk 0:01:08.8]} 21.
e4 {[%clk 0:00:29]} 21... Be6 {[%clk 0:01:08.9]} 22. Ra3 {[%clk 0:00:29.7]}
22... Bf8 {[%clk 0:00:50.5]} 23. f4 {[%clk 0:00:29.5]} 23... f6 {[%clk
0:00:46.6]} 24. g4 {[%clk 0:00:29.7]} 24... Bd7 {[%clk 0:00:46.3]} 25. Bf1
{[%clk 0:00:29.7]} 25... Kg7 {[%clk 0:00:44.6]} 26. Kf2 {[%clk 0:00:15.3]} 26...
e5 {[%clk 0:00:44.3]} 27. Bxf8+ {[%clk 0:00:05.1]} 27... Rxf8 {[%clk 0:00:45.2]}
28. Nc4 {[%clk 0:00:05.2]} 28... Nxc4 {[%clk 0:00:43.5]} 29. Bxc4 {[%clk
0:00:06.1]} 29... b6 {[%clk 0:00:43.4]} 30. Ke3 {[%clk 0:00:03.8]} 30... exf4+
{[%clk 0:00:43.6]} 31. Kxf4 {[%clk 0:00:04.5]} 31... Rfe8 {[%clk 0:00:44.3]} 32.
Bd3 {[%clk 0:00:05]} 32... Rh8 {[%clk 0:00:36.1]} 33. Rb2 {[%clk 0:00:04.7]}
33... h5 {[%clk 0:00:34.2]} 34. g5 {[%clk 0:00:02.1]} 34... fxg5+ {[%clk
0:00:29]} 35. Kxg5 {[%clk 0:00:03]} 35... h4 {[%clk 0:00:29.6]} 36. e5 {[%clk
0:00:03.9]} 36... Raf8 {[%clk 0:00:23.8]} 37. Bxg6 {[%clk 0:00:02.3]} 37... Rf3
{[%clk 0:00:24.5]} 38. Bc2 {[%clk 0:00:02.4]} 38... Rg3+ {[%clk 0:00:20.2]} 39.
Kf4 {[%clk 0:00:02.7]} 39... Rf8+ {[%clk 0:00:20.8]} 40. Ke4 {[%clk 0:00:02.7]}
40... Bf5+ {[%clk 0:00:21.2]} 41. Kf4 {[%clk 0:00:02.5]} 41... Bxc2# {[%clk
0:00:21.4]} 0-1

[Event "Late-Titled-Tuesday-Blitz-February-27-2024"]
[Site "Chess.com"]
[Date "2024.02.27"]
[Round "7"]
[White "ChadBiryani"]
[Black "VinzentSpitzl"]
[Result "0-1"]
[WhiteElo "2417"]
[BlackElo "2533"]
[TimeControl "180+1"]
[EndTime "15:16:29 PST"]
[Termination "VinzentSpitzl won by resignation"]

1. c4 {[%clk 0:02:58.6]} 1... e6 {[%clk 0:02:59.4]} 2. g3 {[%clk 0:02:58.6]}
2... Nf6 {[%clk 0:02:59.5]} 3. Bg2 {[%clk 0:02:58.9]} 3... d5 {[%clk 0:03:00.2]}
4. Nf3 {[%clk 0:02:58.6]} 4... Be7 {[%clk 0:03:00.6]} 5. O-O {[%clk 0:02:58.4]}
5... O-O {[%clk 0:03:01.2]} 6. b3 {[%clk 0:02:58.4]} 6... c5 {[%clk 0:03:01.5]}
7. cxd5 {[%clk 0:02:57.3]} 7... Nxd5 {[%clk 0:03:01.2]} 8. Bb2 {[%clk
0:02:57.2]} 8... Nc6 {[%clk 0:03:01.3]} 9. Nc3 {[%clk 0:02:55.3]} 9... Nxc3
{[%clk 0:03:01]} 10. Bxc3 {[%clk 0:02:55]} 10... Bd7 {[%clk 0:02:52.8]} 11. Rc1
{[%clk 0:02:54.1]} 11... Rc8 {[%clk 0:02:52.5]} 12. Qc2 {[%clk 0:02:53.3]} 12...
b6 {[%clk 0:02:52.3]} 13. Qb2 {[%clk 0:02:51.9]} 13... Bf6 {[%clk 0:02:50.8]}
14. Bxf6 {[%clk 0:02:50.4]} 14... Qxf6 {[%clk 0:02:51.4]} 15. Qxf6 {[%clk
0:02:50.6]} 15... gxf6 {[%clk 0:02:52.3]} 16. Rfd1 {[%clk 0:02:50.1]} 16... Rfd8
{[%clk 0:02:50.4]} 17. Bh3 {[%clk 0:02:43.7]} 17... Kf8 {[%clk 0:02:43.3]} 18.
Kg2 {[%clk 0:02:39.3]} 18... Ke7 {[%clk 0:02:42.1]} 19. d4 {[%clk 0:02:39]}
19... Nxd4 {[%clk 0:02:26.7]} 20. Nxd4 {[%clk 0:02:38.6]} 20... cxd4 {[%clk
0:02:26.9]} 21. Rxc8 {[%clk 0:02:38.3]} 21... Bxc8 {[%clk 0:02:27.1]} 22. Rc1
{[%clk 0:02:20]} 22... Bb7+ {[%clk 0:02:23.2]} 23. Kf1 {[%clk 0:02:17.5]} 23...
Rc8 {[%clk 0:02:23.3]} 24. Rxc8 {[%clk 0:02:15.6]} 24... Bxc8 {[%clk 0:02:23.2]}
25. Bg2 {[%clk 0:02:15]} 25... Kd6 {[%clk 0:02:20.8]} 26. Ke1 {[%clk 0:02:14]}
26... Kc5 {[%clk 0:02:17.5]} 27. Kd2 {[%clk 0:02:13.1]} 27... Kb4 {[%clk
0:02:12.4]} 28. Kc2 {[%clk 0:02:13.3]} 28... Ka3 {[%clk 0:02:07.6]} 29. Kb1
{[%clk 0:02:13.3]} 29... Ba6 {[%clk 0:02:04.7]} 30. Bf3 {[%clk 0:02:08]} 30...
f5 {[%clk 0:02:04.3]} 31. e3 {[%clk 0:02:04.1]} 31... d3 {[%clk 0:01:54.1]} 32.
Bc6 {[%clk 0:01:42.9]} 32... Bc8 {[%clk 0:01:26.9]} 33. f4 {[%clk 0:01:30.2]}
33... f6 {[%clk 0:01:18.9]} 34. h4 {[%clk 0:00:46.7]} 34... h6 {[%clk
0:01:18.5]} 35. Bf3 {[%clk 0:00:41.3]} 35... Bd7 {[%clk 0:01:15.3]} 36. Bb7
{[%clk 0:00:35.1]} 36... a5 {[%clk 0:01:14.3]} 37. Ba6 {[%clk 0:00:33.8]} 37...
b5 {[%clk 0:01:04.5]} 38. Bb7 {[%clk 0:00:29.1]} 38... b4 {[%clk 0:00:55.7]} 39.
Bf3 {[%clk 0:00:27.6]} 39... a4 {[%clk 0:00:49]} 40. Bd1 {[%clk 0:00:23.8]}
40... Bc6 {[%clk 0:00:40.1]} 41. Kc1 {[%clk 0:00:08.6]} 41... Kxa2 {[%clk
0:00:35.8]} 42. bxa4 {[%clk 0:00:08.7]} 42... b3 {[%clk 0:00:36.1]} 43. Bxb3+
{[%clk 0:00:06.3]} 43... Kxb3 {[%clk 0:00:35.8]} 44. a5 {[%clk 0:00:07.2]} 44...
Bb5 {[%clk 0:00:35]} 45. Kd2 {[%clk 0:00:07.8]} 45... Kb4 {[%clk 0:00:34.9]} 0-1

[Event "Late-Titled-Tuesday-Blitz-February-27-2024"]
[Site "Chess.com"]
[Date "2024.02.27"]
[Round "7"]
[White "chedimir"]
[Black "PattyCastillo"]
[Result "1-0"]
[WhiteElo "2449"]
[BlackElo "2002"]
[TimeControl "180+1"]
[EndTime "15:16:33 PST"]
[Termination "chedimir won on time"]

1. e4 {[%clk 0:03:00]} 1... c5 {[%clk 0:03:00.1]} 2. Nf3 {[%clk 0:02:59.5]} 2...
d6 {[%clk 0:03:00.5]} 3. d4 {[%clk 0:02:59.3]} 3... cxd4 {[%clk 0:03:01.4]} 4.
Nxd4 {[%clk 0:02:59.1]} 4... Nf6 {[%clk 0:03:02]} 5. Nc3 {[%clk 0:02:59]} 5...
a6 {[%clk 0:03:02.5]} 6. f4 {[%clk 0:02:58.5]} 6... e5 {[%clk 0:02:57.7]} 7. Nf3
{[%clk 0:02:57.4]} 7... Nbd7 {[%clk 0:02:56.9]} 8. a4 {[%clk 0:02:56.5]} 8...
Be7 {[%clk 0:02:56.3]} 9. Bc4 {[%clk 0:02:55.7]} 9... O-O {[%clk 0:02:49.6]} 10.
O-O {[%clk 0:02:54.8]} 10... exf4 {[%clk 0:02:42.8]} 11. Bxf4 {[%clk 0:02:54]}
11... Qb6+ {[%clk 0:02:42.9]} 12. Kh1 {[%clk 0:02:53.3]} 12... Qxb2 {[%clk
0:02:42.6]} 13. Qd2 {[%clk 0:02:51.6]} 13... Qb6 {[%clk 0:02:35.9]} 14. Rad1
{[%clk 0:02:35.2]} 14... Nc5 {[%clk 0:02:28.6]} 15. Qd4 {[%clk 0:01:52.9]} 15...
Qc7 {[%clk 0:01:33.7]} 16. e5 {[%clk 0:01:42.2]} 16... dxe5 {[%clk 0:01:29.1]}
17. Bxe5 {[%clk 0:01:41.4]} 17... Qc6 {[%clk 0:01:21.6]} 18. Nd5 {[%clk
0:01:37.5]} 18... Nxd5 {[%clk 0:01:06.1]} 19. Bxg7 {[%clk 0:01:09.4]} 19... Nf6
{[%clk 0:00:47.4]} 20. Bxf8 {[%clk 0:01:06.2]} 20... Kxf8 {[%clk 0:00:40]} 21.
Ne5 {[%clk 0:01:04.2]} 21... Ne6 {[%clk 0:00:31.8]} 22. Nxc6 {[%clk 0:01:01.8]}
22... Nxd4 {[%clk 0:00:31.3]} 23. Nxd4 {[%clk 0:01:01.6]} 23... Bg4 {[%clk
0:00:24.5]} 24. Rde1 {[%clk 0:00:55.4]} 24... Rd8 {[%clk 0:00:18.7]} 25. Nf5
{[%clk 0:00:52.8]} 25... Bxf5 {[%clk 0:00:14.5]} 26. Rxf5 {[%clk 0:00:52.1]}
26... Rd2 {[%clk 0:00:14.2]} 27. Bd3 {[%clk 0:00:48.1]} 27... Ng4 {[%clk
0:00:13]} 28. Rf3 {[%clk 0:00:22.9]} 28... Bd6 {[%clk 0:00:10.9]} 29. h3 {[%clk
0:00:20.4]} 29... Ne5 {[%clk 0:00:08.8]} 30. Rfe3 {[%clk 0:00:18.7]} 30... Ng6
{[%clk 0:00:03.8]} 31. Bxg6 {[%clk 0:00:16.2]} 31... hxg6 {[%clk 0:00:04.7]} 32.
Rd3 {[%clk 0:00:16.1]} 32... Rxd3 {[%clk 0:00:02.2]} 33. cxd3 {[%clk 0:00:16.4]}
33... f6 {[%clk 0:00:01.8]} 34. Rb1 {[%clk 0:00:16.2]} 1-0

[Event "Late-Titled-Tuesday-Blitz-February-27-2024"]
[Site "Chess.com"]
[Date "2024.02.27"]
[Round "7"]
[White "Oleksandr_Bortnyk"]
[Black "hansen"]
[Result "0-1"]
[WhiteElo "3044"]
[BlackElo "2931"]
[TimeControl "180+1"]
[EndTime "15:16:35 PST"]
[Termination "hansen won by resignation"]

1. e4 {[%clk 0:02:59.2]} 1... e5 {[%clk 0:02:57.9]} 2. Nf3 {[%clk 0:02:55.8]}
2... Nc6 {[%clk 0:02:57.5]} 3. Bb5 {[%clk 0:02:53.9]} 3... a6 {[%clk 0:02:56.4]}
4. Ba4 {[%clk 0:02:53.7]} 4... Nf6 {[%clk 0:02:56.7]} 5. Nc3 {[%clk 0:02:54]}
5... d6 {[%clk 0:02:49.3]} 6. Bxc6+ {[%clk 0:02:42.5]} 6... bxc6 {[%clk
0:02:49.5]} 7. d4 {[%clk 0:02:43.4]} 7... exd4 {[%clk 0:02:49.9]} 8. Nxd4 {[%clk
0:02:44.3]} 8... c5 {[%clk 0:02:50.4]} 9. Nc6 {[%clk 0:02:44.6]} 9... Qd7 {[%clk
0:02:50.5]} 10. Na5 {[%clk 0:02:45.2]} 10... Be7 {[%clk 0:02:43.8]} 11. f3
{[%clk 0:02:40.5]} 11... O-O {[%clk 0:02:41.2]} 12. Be3 {[%clk 0:02:14.3]} 12...
c6 {[%clk 0:02:37]} 13. Qd2 {[%clk 0:02:14.8]} 13... Qc7 {[%clk 0:02:32.3]} 14.
Na4 {[%clk 0:01:58.7]} 14... Rb8 {[%clk 0:02:27.2]} 15. a3 {[%clk 0:01:36.7]}
15... Rb5 {[%clk 0:02:18.3]} 16. Nb3 {[%clk 0:01:33.3]} 16... Be6 {[%clk
0:01:54.7]} 17. Bf4 {[%clk 0:01:09.2]} 17... Bxb3 {[%clk 0:01:33.1]} 18. cxb3
{[%clk 0:01:10.1]} 18... Nh5 {[%clk 0:01:33.2]} 19. O-O {[%clk 0:01:00.2]} 19...
Nxf4 {[%clk 0:01:29.7]} 20. Qxf4 {[%clk 0:01:01.1]} 20... Rxb3 {[%clk
0:01:27.9]} 21. Kh1 {[%clk 0:00:55.5]} 21... Qa5 {[%clk 0:01:23.7]} 22. e5
{[%clk 0:00:55.6]} 22... d5 {[%clk 0:01:15.9]} 23. Rf2 {[%clk 0:00:41.1]} 23...
d4 {[%clk 0:00:53.4]} 24. e6 {[%clk 0:00:41.5]} 24... Qxa4 {[%clk 0:00:53.9]}
25. Re1 {[%clk 0:00:34.2]} 25... Re3 {[%clk 0:00:49.3]} 26. Rff1 {[%clk
0:00:15.5]} 26... fxe6 {[%clk 0:00:37.8]} 27. Qg4 {[%clk 0:00:12.9]} 27... Qb3
{[%clk 0:00:34.3]} 28. h4 {[%clk 0:00:10.9]} 28... Qd5 {[%clk 0:00:32.5]} 29.
Rxe3 {[%clk 0:00:09.3]} 29... dxe3 {[%clk 0:00:33]} 30. Re1 {[%clk 0:00:10.2]}
30... h5 {[%clk 0:00:30.9]} 31. Qg6 {[%clk 0:00:08.9]} 31... Qe5 {[%clk
0:00:22.5]} 32. Qd3 {[%clk 0:00:07.7]} 32... Bd6 {[%clk 0:00:19.6]} 33. Kg1
{[%clk 0:00:06.4]} 33... Qh2+ {[%clk 0:00:18.8]} 34. Kf1 {[%clk 0:00:07.2]}
34... Qh1+ {[%clk 0:00:18.9]} 35. Ke2 {[%clk 0:00:08]} 35... Qxg2+ {[%clk
0:00:19.1]} 36. Kd1 {[%clk 0:00:08.8]} 36... Bf4 {[%clk 0:00:17.9]} 37. Re2
{[%clk 0:00:08.2]} 37... Qxf3 {[%clk 0:00:17.2]} 38. Kc1 {[%clk 0:00:08.7]}
38... Qd5 {[%clk 0:00:16.4]} 39. Qg6 {[%clk 0:00:08.1]} 39... Rd8 {[%clk
0:00:14]} 40. Qc2 {[%clk 0:00:05]} 40... Qh1+ {[%clk 0:00:09.7]} 0-1

[Event "Late-Titled-Tuesday-Blitz-February-27-2024"]
[Site "Chess.com"]
[Date "2024.02.27"]
[Round "7"]
[White "Polish_fighter3000"]
[Black "Hikaru"]
[Result "1/2-1/2"]
[WhiteElo "3110"]
[BlackElo "3240"]
[TimeControl "180+1"]
[EndTime "15:16:37 PST"]
[Termination "Game drawn by repetition"]

1. e4 {[%clk 0:03:00.9]} 1... c6 {[%clk 0:02:54.9]} 2. d4 {[%clk 0:03:00.2]}
2... d5 {[%clk 0:02:55.4]} 3. Nc3 {[%clk 0:02:59.5]} 3... dxe4 {[%clk
0:02:54.9]} 4. Nxe4 {[%clk 0:03:00.4]} 4... Nf6 {[%clk 0:02:55.4]} 5. Nxf6+
{[%clk 0:03:00]} 5... gxf6 {[%clk 0:02:56.3]} 6. c3 {[%clk 0:02:54.8]} 6... Bf5
{[%clk 0:02:56.4]} 7. Nf3 {[%clk 0:02:53]} 7... e6 {[%clk 0:02:56.6]} 8. g3
{[%clk 0:02:46.7]} 8... Qa5 {[%clk 0:02:52.3]} 9. Bg2 {[%clk 0:02:36.3]} 9...
Qa6 {[%clk 0:02:50.5]} 10. b3 {[%clk 0:02:28.3]} 10... Be4 {[%clk 0:02:44.9]}
11. c4 {[%clk 0:02:24.3]} 11... Bb4+ {[%clk 0:02:39.9]} 12. Bd2 {[%clk
0:02:24.3]} 12... Bxf3 {[%clk 0:02:30.5]} 13. Bxf3 {[%clk 0:02:21.2]} 13... Qa5
{[%clk 0:02:30.8]} 14. d5 {[%clk 0:02:03.5]} 14... Nd7 {[%clk 0:02:23.1]} 15.
Bxb4 {[%clk 0:01:40.9]} 15... Qxb4+ {[%clk 0:02:23.1]} 16. Kf1 {[%clk
0:01:41.4]} 16... Ne5 {[%clk 0:02:06.3]} 17. Kg2 {[%clk 0:01:01.6]} 17... Rd8
{[%clk 0:01:39.7]} 18. Re1 {[%clk 0:00:58.9]} 18... O-O {[%clk 0:01:30.2]} 19.
Re4 {[%clk 0:00:55.7]} 19... Qa5 {[%clk 0:00:55.4]} 20. Rf4 {[%clk 0:00:16.2]}
20... f5 {[%clk 0:00:47.8]} 21. Rd4 {[%clk 0:00:10.4]} 21... Ng6 {[%clk
0:00:19.6]} 22. Qe1 {[%clk 0:00:06.1]} 22... Qxe1 {[%clk 0:00:19]} 23. Rxe1
{[%clk 0:00:07]} 23... e5 {[%clk 0:00:19.6]} 24. Rd2 {[%clk 0:00:06.1]} 24... e4
{[%clk 0:00:20.2]} 25. Bh5 {[%clk 0:00:06.2]} 25... cxd5 {[%clk 0:00:20.6]} 26.
cxd5 {[%clk 0:00:03.8]} 26... Rd7 {[%clk 0:00:19.6]} 27. f3 {[%clk 0:00:04]}
27... Re8 {[%clk 0:00:18.8]} 28. fxe4 {[%clk 0:00:03]} 28... fxe4 {[%clk
0:00:19.7]} 29. Bg4 {[%clk 0:00:03]} 29... Rd6 {[%clk 0:00:20.3]} 30. Bf5 {[%clk
0:00:03.3]} 30... e3 {[%clk 0:00:19.1]} 31. Rd3 {[%clk 0:00:03.3]} 31... Re5
{[%clk 0:00:19.6]} 32. Bxg6 {[%clk 0:00:03.6]} 32... hxg6 {[%clk 0:00:20]} 33.
Rexe3 {[%clk 0:00:04.3]} 33... Rxe3 {[%clk 0:00:19.7]} 34. Rxe3 {[%clk
0:00:05.2]} 34... Rxd5 {[%clk 0:00:20.5]} 35. Re7 {[%clk 0:00:05.2]} 35... Rd2+
{[%clk 0:00:18.4]} 36. Kg1 {[%clk 0:00:05.7]} 36... Rxa2 {[%clk 0:00:18.3]} 37.
Rxb7 {[%clk 0:00:05.9]} 37... Kg7 {[%clk 0:00:18.8]} 38. b4 {[%clk 0:00:05.7]}
38... Kf6 {[%clk 0:00:19.5]} 39. b5 {[%clk 0:00:06]} 39... g5 {[%clk 0:00:20.2]}
40. b6 {[%clk 0:00:04.4]} 40... axb6 {[%clk 0:00:21.1]} 41. Rxb6+ {[%clk
0:00:05.3]} 41... Kf5 {[%clk 0:00:21.9]} 42. Rb4 {[%clk 0:00:05.6]} 42... Ke5
{[%clk 0:00:21.9]} 43. h4 {[%clk 0:00:05.8]} 43... gxh4 {[%clk 0:00:21]} 44.
Rxh4 {[%clk 0:00:06.7]} 44... Ra1+ {[%clk 0:00:19.1]} 45. Kg2 {[%clk 0:00:06.7]}
45... Ra2+ {[%clk 0:00:20]} 46. Kg1 {[%clk 0:00:07.3]} 46... Ra1+ {[%clk
0:00:20.9]} 47. Kg2 {[%clk 0:00:07.9]} 47... Ra2+ {[%clk 0:00:21.8]} 48. Kg1
{[%clk 0:00:08.5]} 1/2-1/2

[Event "Late-Titled-Tuesday-Blitz-February-27-2024"]
[Site "Chess.com"]
[Date "2024.02.27"]
[Round "7"]
[White "Sajkochess"]
[Black "tandaleo"]
[Result "0-1"]
[WhiteElo "2331"]
[BlackElo "2502"]
[TimeControl "180+1"]
[EndTime "15:16:38 PST"]
[Termination "tandaleo won on time"]

1. e4 {[%clk 0:03:00.9]} 1... c6 {[%clk 0:03:00]} 2. Nf3 {[%clk 0:03:00.7]} 2...
d5 {[%clk 0:02:58.3]} 3. Nc3 {[%clk 0:03:01.3]} 3... Bg4 {[%clk 0:02:55.5]} 4.
d4 {[%clk 0:02:59.9]} 4... dxe4 {[%clk 0:02:52.7]} 5. Nxe4 {[%clk 0:03:00.2]}
5... Nd7 {[%clk 0:02:42.6]} 6. h3 {[%clk 0:02:56]} 6... Bxf3 {[%clk 0:02:40.5]}
7. Qxf3 {[%clk 0:02:56.9]} 7... Ngf6 {[%clk 0:02:37.3]} 8. c3 {[%clk 0:02:53]}
8... e6 {[%clk 0:02:31.3]} 9. Ng3 {[%clk 0:02:51]} 9... Bd6 {[%clk 0:02:25.3]}
10. Bd3 {[%clk 0:02:50.1]} 10... O-O {[%clk 0:02:19.3]} 11. O-O {[%clk
0:02:49.7]} 11... Qc7 {[%clk 0:02:09.8]} 12. Bg5 {[%clk 0:02:31.3]} 12... h6
{[%clk 0:02:06.9]} 13. Be3 {[%clk 0:02:25]} 13... e5 {[%clk 0:02:04.2]} 14. Nf5
{[%clk 0:02:17]} 14... Rfe8 {[%clk 0:01:50.6]} 15. Qg3 {[%clk 0:01:46]} 15...
Nh5 {[%clk 0:01:34.1]} 16. Qh4 {[%clk 0:01:44.1]} 16... Nf4 {[%clk 0:01:20.1]}
17. Bxf4 {[%clk 0:01:36.9]} 17... exf4 {[%clk 0:01:18.4]} 18. Qg4 {[%clk
0:01:35.5]} 18... g6 {[%clk 0:01:02.6]} 19. Nxh6+ {[%clk 0:01:13.7]} 19... Kf8
{[%clk 0:01:02.5]} 20. Bc4 {[%clk 0:00:35.1]} 20... Re7 {[%clk 0:00:39.4]} 21.
Qg5 {[%clk 0:00:21.1]} 21... Nb6 {[%clk 0:00:28.1]} 22. Bb3 {[%clk 0:00:14.7]}
22... f3 {[%clk 0:00:22.5]} 23. Qf6 {[%clk 0:00:08.1]} 23... Ke8 {[%clk
0:00:16]} 24. Rfe1 {[%clk 0:00:04.8]} 24... Nd5 {[%clk 0:00:13.4]} 25. Qxf7+
{[%clk 0:00:03.7]} 25... Kd8 {[%clk 0:00:12.5]} 26. Qg8+ {[%clk 0:00:04.1]}
26... Kd7 {[%clk 0:00:12.8]} 27. Qxa8 {[%clk 0:00:04.2]} 27... Bh2+ {[%clk
0:00:12.9]} 28. Kh1 {[%clk 0:00:03.9]} 28... fxg2+ {[%clk 0:00:13.4]} 29. Kxg2
{[%clk 0:00:04.5]} 29... Nf4+ {[%clk 0:00:13.9]} 30. Kxh2 {[%clk 0:00:05.1]}
30... Nd3+ {[%clk 0:00:11]} 31. Kg1 {[%clk 0:00:05]} 31... Nxe1 {[%clk
0:00:10.1]} 32. Qg8 {[%clk 0:00:04.3]} 32... Nf3+ {[%clk 0:00:09.5]} 33. Kg2
{[%clk 0:00:04]} 33... Nh4+ {[%clk 0:00:06.7]} 34. Kg1 {[%clk 0:00:02.6]} 34...
Qf4 {[%clk 0:00:04.4]} 35. Ng4 {[%clk 0:00:01.3]} 35... Qf3 {[%clk 0:00:03.9]}
0-1